{"text_format":"3","workbook":"xlsx","n_sheets":2,"sheets":["Formular für Schulveranstaltung","Datenblatt"],"not_rendered":{"defined_names":1,"comments":1},"read":"whole","date_system":"1900"}

{"sheet":"Formular für Schulveranstaltung","index":0,"n_rows":29,"n_cols":13,"rows_kept":29,"merged":[[7,0,8,0],[7,1,8,1],[7,2,8,2],[7,3,7,4],[7,5,8,5],[7,6,8,6],[7,7,8,7],[7,8,8,8],[7,9,8,9],[7,10,8,10],[7,11,8,11],[7,12,8,12],[9,0,11,0],[9,2,11,2],[9,3,11,3],[9,4,11,4],[9,6,11,6],[9,7,11,7],[9,8,11,8],[9,9,11,9],[9,10,11,10],[9,11,11,11],[9,12,11,12],[12,0,14,0],[12,2,14,2],[12,3,14,3],[12,4,14,4],[12,6,14,6],[12,7,14,7],[12,8,14,8],[12,9,14,9],[12,10,14,10],[12,11,14,11],[12,12,14,12],[15,0,17,0],[15,2,17,2],[15,3,17,3],[15,4,17,4],[15,6,17,6],[15,7,17,7],[15,8,17,8],[15,9,17,9],[15,10,17,10],[15,11,17,11],[15,12,17,12],[18,0,20,0],[18,2,20,2],[18,3,20,3],[18,4,20,4],[18,6,20,6],[18,7,20,7],[18,8,20,8],[18,9,20,9],[18,10,20,10],[18,11,20,11],[18,12,20,12],[21,0,23,0],[21,2,23,2],[21,3,23,3],[21,4,23,4],[21,6,23,6],[21,7,23,7],[21,8,23,8],[21,9,23,9],[21,10,23,10],[21,11,23,11],[21,12,23,12]]}
["Schulveranstaltungs-Reiserechnung für Landeslehrer",{"$nulls":10},"Schulkennzahl:"]
[]
["Art der Schulveranstaltung:",null,"Exkursion",null,"Berufspraktische Tage",null,"Schüleraustausch"]
["Inland",null,"Projektwoche",null,"Zutreffendes bitte ankreuzen"]
["\nAusland"]
["Beilagen:",{"$nulls":11},"Schulstempel und Eingangsdatum"]
[]
["Personal-\nnummer","1. Zu- und Vorname\n2. Straße\n3. PLZ, Wohnort","Datum","Uhrzeit\nReisedauer",null,"1. Ort der Schulveranstaltung\n2. Anzahl der Schüler & \n    Begleitpersonen\n3. Art des Verkehrsmittels \n    (Bahn, Bus, Privatbus etc.)","Entfer-\nnung \nin km","Fahrt-\nkosten (mit Beleg)","Exkursion am Dienstort (JA oder NEIN)","Tages-\ngebühr","Sonstige Auslagen (mit \nBeleg)","Summe","Unterschrift des Rechnungslegers"]
[{"$nulls":3},"Beginn","Ende"]
[{"$nulls":9},{"$f":"IF(Datenblatt!D23<=5,0,(IF(Datenblatt!D23<=8,Datenblatt!$D$15,(IF(I10=\"JA\",(IF(Datenblatt!D23<=12,Datenblatt!$D$16,Datenblatt!$D$17)),(IF(Datenblatt!D23<=12,Datenblatt!$D$18,Datenblatt!$D$19)))))))","v":{"v":0,"d":"0.00"}},null,{"$f":"SUM(H10:K12)","v":{"v":0,"d":"0.00"}}]
[]
[]
[{"$nulls":9},{"$f":"IF(Datenblatt!D24<=5,0,(IF(Datenblatt!D24<=8,Datenblatt!$D$15,(IF(I13=\"JA\",(IF(Datenblatt!D24<=12,Datenblatt!$D$16,Datenblatt!$D$17)),(IF(Datenblatt!D24<=12,Datenblatt!$D$18,Datenblatt!$D$19)))))))","v":{"v":0,"d":"0.00"}},null,{"$f":"SUM(H13:K15)","v":{"v":0,"d":"0.00"}}]
[]
[]
[{"$nulls":9},{"$f":"IF(Datenblatt!D25<=5,0,(IF(Datenblatt!D25<=8,Datenblatt!$D$15,(IF(I16=\"JA\",(IF(Datenblatt!D25<=12,Datenblatt!$D$16,Datenblatt!$D$17)),(IF(Datenblatt!D25<=12,Datenblatt!$D$18,Datenblatt!$D$19)))))))","v":{"v":0,"d":"0.00"}},null,{"$f":"SUM(H16:K18)","v":{"v":0,"d":"0.00"}}]
[]
[]
[{"$nulls":9},{"$f":"IF(Datenblatt!D26<=5,0,(IF(Datenblatt!D26<=8,Datenblatt!$D$15,(IF(I19=\"JA\",(IF(Datenblatt!D26<=12,Datenblatt!$D$16,Datenblatt!$D$17)),(IF(Datenblatt!D26<=12,Datenblatt!$D$18,Datenblatt!$D$19)))))))","v":{"v":0,"d":"0.00"}},null,{"$f":"SUM(H19:K21)","v":{"v":0,"d":"0.00"}}]
[]
[]
[{"$nulls":9},{"$f":"IF(Datenblatt!D27<=5,0,(IF(Datenblatt!D27<=8,Datenblatt!$D$15,(IF(I22=\"JA\",(IF(Datenblatt!D27<=12,Datenblatt!$D$16,Datenblatt!$D$17)),(IF(Datenblatt!D27<=12,Datenblatt!$D$18,Datenblatt!$D$19)))))))","v":{"v":0,"d":"0.00"}},null,{"$f":"SUM(H22:K24)","v":{"v":0,"d":"0.00"}}]
[]
[]
[]
["Die Schulleitung bestätigt die Richtigkeit der Angaben über Durchführung und angefallene Kosten."]
["Die Bestimmungen der Schulveranstaltungsverordnung wurden eingehalten."]
[]
["LHTANK",{"$nulls":3},"Datum, Unterschrift SchulleiterIn",{"$nulls":4},"Für SchulleiterIn: Unterschrift d. zuständigen Berufsschulinspektors/in"]

{"sheet":"Datenblatt","index":1,"n_rows":27,"n_cols":9,"rows_kept":27,"merged":[[2,0,2,8],[4,0,4,8],[7,0,7,8],[10,0,10,8],[20,0,20,2],[21,0,21,2]]}
["2. SCHULVERANSTALTUNGEN: ",{"$nulls":7},"LHTANK"]
[]
["Reiserechnungsformular für Schulveranstaltungen verwenden! Kopiervorlagen liegen in den Direktionen auf."]
[]
["Die bei Exkursionen anfallenden Reisekosten sind mittels Rechnung zu belegen.\nBei Benützung der öffentlichen Verkehrsmittel (Bahn oder Bus) sind die jeweiligen Gruppentarife in Anspruch zu nehmen bzw. werden nur diese Tarife vergütet. Die Anzahl der teilnehmenden Schüler und Lehrer ist unbedingt anzugeben."]
[]
["Nebenkosten: "]
["Die Kosten für Eintritte (Museen etc.) können nur mittels angeschlossenem Beleg ersetzt werden."]
[]
["Nächtigungskosten: "]
["Bei mehrtägigen Exkursionen werden Nächtigungskosten nur mit Beleg ersetzt.\nDie Nächtigungskosten des Lehrers dürfen im Normalfall nicht höher sein als die Nächtigungskosten der Schüler. In Ausnahmefällen dürfen die Nächtigungskosten des Lehrers das Doppelte der Nächtigungskosten des Schülers ausmachen. Bei Schulveranstaltungen gibt es keine tarifmäßigen Nächtigungsgebühren."]
[]
["Pauschvergütungen bei Exkursionen - Tagesgebühr",null,null,"Euro"]
[]
["Exkursion","von über 5 bis 8 Stunden","immer",6.86]
["Exkursion im Dienstort:","über 8 bis 12 Stunden",null,13.33]
[null,"über 12 Stunden",null,20.06]
["Exkursion außerhalb ","über 8 bis 12 Stunden",null,{"v":17.6,"d":"17.60"}]
["des Dienstortes:","über 12 Stunden",null,{"v":26.4,"d":"26.40"}]
[]
["Fahrtkosten und sonstige Auslagen laut Beleg!"]
["Formulardaten"]
["Exkursion 1","Dauer",{"$f":"'Formular für Schulveranstaltung'!E10-'Formular für Schulveranstaltung'!D10","v":"00:00:00"},{"$f":"C23*24","v":{"v":0,"d":"0.00"}}]
["Exkursion 2","Dauer",{"$f":"'Formular für Schulveranstaltung'!E13-'Formular für Schulveranstaltung'!D13","v":"00:00:00"},{"$f":"C24*24","v":{"v":0,"d":"0.00"}}]
["Exkursion 3","Dauer",{"$f":"'Formular für Schulveranstaltung'!E16-'Formular für Schulveranstaltung'!D16","v":"00:00:00"},{"$f":"C25*24","v":{"v":0,"d":"0.00"}}]
["Exkursion 4","Dauer",{"$f":"'Formular für Schulveranstaltung'!E19-'Formular für Schulveranstaltung'!D19","v":"00:00:00"},{"$f":"C26*24","v":{"v":0,"d":"0.00"}}]
["Exkursion 5","Dauer",{"$f":"'Formular für Schulveranstaltung'!E22-'Formular für Schulveranstaltung'!D22","v":"00:00:00"},{"$f":"C27*24","v":{"v":0,"d":"0.00"}}]